bitfinex-derivatives/quotes_ETHF0:USTF0_20250928
["timestamp","ask_amount","ask_price","bid_price","bid_amount"]
[1759063407857,0.748,3980.7,3980.6,4.22207]
[1759063408163,0.748,3980.7,3980.2,1.13003]
[1759063408164,0.748,3980.3,3980.2,0.5623]
[1759063408361,0.748,3980.3,3980.2,1.27031]
[1759063408555,0.748,3980.3,3980.2,1.49611]
[1759063408957,0.3281,3980.2,3980.1,0.339]
[1759063409163,0.748,3980.2,3980.1,0.4793]
[1759063410962,0.4199,3980.2,3980.1,0.2233]
[1759063411262,0.4199,3980.2,3980.1,1.0441]
[1759063411464,0.87192,3980.2,3980.1,0.256]
[1759063411663,1.20002,3980.2,3980.1,0.256]
[1759063412367,1.20002,3980.2,3980.1,0.4793]
[1759063412666,0.748,3980.2,3980.1,1.0441]
[1759063412866,0.748,3980.2,3980.1,0.5623]
[1759063413165,0.748,3979.8,3979.7,3.9959]
[1759063413363,0.748,3979.8,3979.7,4.2519]
[1759063414267,0.748,3979.8,3979.7,3.4311]
[1759063414462,0.748,3979.8,3979.7,3.4638]
[1759063414766,1.20006,3979.8,3979.7,3.4638]
[1759063415360,0.748,3979.8,3979.7,3.6871]
[1759063415572,1.20006,3979.8,3979.7,4.70397]
[1759063416464,1.27858062,3979.8,3979.7,4.2519]
[1759063416656,1.27858062,3979.8,3979.7,3.4638]
[1759063418862,0.2072,3979.4,3979.3,3.2078]
[1759063419068,1.27863062,3979.4,3979.3,4.0261]
[1759063419268,1.27863062,3979.4,3979.3,4.47822]
[1759063419468,1.27863062,3979.4,3979.3,4.70402]
[1759063419965,0.82652062,3979.4,3979.3,4.70402]
[1759063420272,1.27863062,3979.4,3979.3,4.70402]
[1759063421173,1.27863062,3979.4,3979.3,3.9959]
[1759063421374,1.27863062,3979.4,3979.3,4.2519]
[1759063422368,1.27863062,3979.4,3979.3,3.6569]
[1759063422671,1.27863062,3979.4,3979.3,3.9129]
[1759063422872,1.27863062,3979.4,3979.3,4.2519]
[1759063427876,0.73783062,3979.4,3979.3,4.2519]
[1759063428074,0.95053062,3979.4,3979.3,3.5468]
[1759063428277,0.95053062,3979.4,3979.2,0.45213]
[1759063428278,0.07852062,3979.4,3978.9,0.7881]
[1759063428480,0.3281,3980.4,3979.8,0.339]
[1759063428675,0.87195,3980.0,3979.9,0.256]
[1759063428983,1.20005,3980.0,3979.9,0.8183]
[1759063429174,0.748,3980.0,3979.9,0.8193]
[1759063429982,0.748,3980.0,3979.9,1.0451]
[1759063431795,6.32544,3980.0,3979.9,0.256]
[1759063432191,0.87197,3979.7,3979.6,0.5623]
[1759063432496,1.20007,3979.7,3979.6,0.256]
[1759063433997,0.7392,3979.0,3978.9,3.5267]
[1759063434194,0.8651,3979.0,3978.9,3.2078]
[1759063434390,0.8651,3979.0,3978.9,3.4648]
[1759063434990,0.8651,3979.0,3978.9,3.2078]
[1759063435189,5.8651,3979.0,3978.9,3.12927938]
[1759063435388,0.8651,3978.0,3977.9,0.02513921]
[1759063435589,0.3178,3976.3,3976.2,0.3189]
[1759063435793,0.2085,3976.3,3976.2,0.9137]
[1759063435987,3.6292,3976.9,3976.8,0.7717]
[1759063436191,3.6292,3976.9,3976.8,0.8045]
[1759063436398,3.94935394,3976.9,3976.8,0.80662321]
[1759063436799,0.00235394,3976.9,3976.8,1.03282321]
[1759063437099,0.00235394,3976.9,3976.8,0.77382321]
[1759063437297,0.00235394,3976.9,3976.8,1.03282321]
[1759063437493,0.74155394,3976.9,3976.8,1.03282321]
[1759063437999,0.21085394,3976.9,3976.8,1.48522321]
[1759063438199,0.74155394,3976.9,3976.8,0.54762321]
[1759063438395,8.94935394,3976.9,3976.8,0.00212321]
[1759063438598,8.94935394,3976.9,3976.8,0.77382321]
[1759063438599,3.94935394,3976.9,3976.8,0.77382321]
[1759063438797,3.21015394,3976.9,3976.8,0.77382321]
[1759063438999,0.00235394,3976.9,3976.8,0.77382321]
[1759063439701,3.2078,3978.0,3977.2,0.7717]
[1759063439899,3.4163,3978.0,3977.9,0.7717]
[1759063440796,3.21039179,3978.0,3977.9,0.7717]
[1759063442000,3.94959179,3978.0,3977.9,1.0307]
[1759063442694,3.21039179,3978.0,3977.9,1.0307]
[1759063443492,3.21039179,3978.0,3977.9,0.7717]
[1759063443694,3.21039179,3978.0,3977.9,1.0307]
[1759063444096,3.94959179,3978.0,3977.9,0.7717]
[1759063444289,3.94959179,3978.0,3977.9,1.0307]
[1759063444498,4.07549179,3978.0,3977.9,0.259]
[1759063445096,4.20996179,3978.0,3977.5,0.1338]
[1759063445404,4.52776179,3978.0,3977.9,0.259]
[1759063445606,0.5307,3977.9,3977.8,0.4856]
[1759063445900,3.21039179,3978.0,3977.8,1.0307]
[1759063446100,3.41889179,3978.0,3977.9,0.7717]
[1759063446407,3.94959179,3978.0,3977.9,0.7717]
[1759063447200,1.19148,3977.9,3977.8,0.259]
[1759063447797,0.7392,3977.9,3977.8,0.8045]
[1759063450403,1.19148,3977.9,3977.8,0.8045]
[1759063451411,1.19148,3977.9,3977.8,0.5455]
[1759063453006,0.7878,3977.6,3977.5,0.78991]
[1759063453202,0.7878,3977.6,3977.1,0.3376]
[1759063453405,0.7878,3977.2,3977.1,0.5534]
[1759063453604,0.7878,3977.2,3977.1,1.26477]
[1759063453803,1.24016,3977.2,3977.1,0.5534]
[1759063454001,1.24016,3977.2,3977.1,0.2158]
[1759063454814,0.7878,3977.2,3977.1,0.2158]
[1759063455511,0.7878,3977.2,3976.8,0.33972321]
[1759063455706,0.7878,3976.9,3976.8,0.76502321]
[1759063455908,0.7878,3976.9,3976.8,1.02302321]
[1759063456109,0.7878,3976.9,3976.8,0.47592321]
[1759063456311,0.7878,3976.9,3976.8,0.21792321]
[1759063456613,0.7878,3976.9,3976.8,0.81352321]
[1759063456814,0.7878,3976.9,3976.8,1.21742321]
[1759063457012,1.24019,3976.9,3976.8,0.47592321]
[1759063457510,0.7878,3976.9,3976.8,0.47592321]
[1759063457710,1.24019,3976.9,3976.8,0.21792321]
[1759063457906,1.24019,3976.9,3976.8,0.47592321]
[1759063458215,1.24019,3976.9,3976.8,0.26012321]
[1759063458609,1.24019,3976.9,3976.8,0.00212321]
[1759063458909,6.24019,3976.9,3976.8,0.00212321]
[1759063459109,6.31877651,3976.9,3976.8,0.00212321]
[1759063459712,1.24037,3975.3,3975.0,0.3376]
[1759063460008,0.2264,3974.7,3974.6,0.7629]
[1759063460209,0.2264,3974.7,3974.6,1.0219]
[1759063460410,0.5679,3974.7,3974.6,0.7629]
[1759063460715,0.00319268,3974.7,3974.6,1.02478841]
[1759063461217,0.79099268,3974.7,3974.6,0.76578841]
[1759063461712,0.79099268,3974.7,3974.6,1.02478841]
[1759063461917,0.79099268,3974.7,3974.6,0.68718841]
[1759063462507,0.9244,3974.0,3973.1,3.2078]
[1759063462704,12.45337,3972.9,3971.9,0.01381213]
[1759063463019,12.45337,3972.9,3971.6,0.3376]
[1759063463020,3.2078,3972.0,3971.6,0.3376]
[1759063463516,3.2078,3972.3,3972.0,0.1322]
[1759063463713,3.2078,3973.2,3973.0,0.1322]
[1759063463915,3.2078,3973.6,3973.5,0.1322]
[1759063464113,3.2078,3973.6,3973.5,0.4535]
[1759063464315,3.28645305,3973.6,3972.3,0.3213]
[1759063464516,0.00319268,3974.7,3973.1,0.3197]
[1759063464517,3.2078,3973.2,3973.1,0.3197]
[1759063464819,3.2078,3973.2,3973.1,0.263]
[1759063465016,3.2078,3973.2,3973.1,5.263]
[1759063465217,3.2078,3973.9,3973.5,0.1322]
[1759063465607,3.66053,3973.9,3973.5,0.1322]
[1759063465809,0.45288,3972.7,3972.5,0.1322]
[1759063466112,0.45294,3972.1,3971.5,0.1322]
[1759063466314,3.2078,3972.1,3971.6,0.267294]
[1759063466518,0.45298,3971.7,3971.6,0.588594]
[1759063466714,0.45510613,3971.7,3971.6,0.588594]
[1759063466912,0.45510613,3971.7,3971.6,0.323594]
[1759063467315,8.28861293,3971.7,3971.0,0.4535]
[1759063467518,0.45315,3970.1,3970.0,0.4535]
[1759063467717,0.45315,3970.1,3968.5,0.1322]
[1759063467718,12.7470879,3970.1,3967.5,0.1322]
[1759063467921,3.2078,3967.8,3967.6,0.3213]
[1759063468121,3.2078,3968.9,3968.5,0.1322]
[1759063468324,0.00279439,3968.9,3968.6,0.3213]
[1759063468622,0.00279439,3968.9,3968.8,0.3213]
[1759063468813,2.95071736,3972.1,3968.8,0.3213]
[1759063468814,3.2078,3971.1,3971.0,0.4535]
[1759063469013,3.2078,3971.1,3971.0,0.36875561]
[1759063469211,3.2078,3971.1,3969.5,3.2078]
[1759063469212,3.28650448,3971.1,3969.5,3.2078]
[1759063469416,0.45331,3968.8,3968.5,0.13526213]
[1759063469620,3.2078,3968.6,3968.5,0.13526213]
[1759063469828,3.21017733,3968.6,3968.5,0.45656213]
[1759063470819,8.21017733,3968.6,3968.5,0.45656213]
[1759063471527,3.21017733,3968.6,3968.5,0.45656213]
[1759063472118,8.21017733,3968.6,3968.5,0.45656213]
[1759063472316,8.48417733,3968.6,3968.0,0.1322]
[1759063472521,3.2078,3968.1,3968.0,0.1322]
[1759063473021,3.12267728,3968.1,3968.0,0.1322]
[1759063473322,0.00237733,3968.6,3968.0,0.1322]
[1759063473323,3.2078,3968.4,3968.0,5.13435907]
[1759063473525,3.2078,3969.0,3968.5,0.1322]
[1759063473717,3.2078,3969.0,3968.5,0.58554]
[1759063473918,3.2078,3969.6,3968.7,0.45331]
[1759063474224,3.2078,3969.6,3969.5,0.1322]
[1759063474424,3.21015573,3969.6,3969.5,0.4535]
[1759063475130,3.21015573,3969.6,3969.5,0.7315]
[1759063475325,3.21015573,3969.6,3969.5,0.4535]
[1759063475326,3.66337573,3969.6,3969.5,0.4535]
[1759063478221,3.21015573,3969.6,3969.5,0.1322]
[1759063479617,3.21015573,3969.6,3969.5,5.1322]
[1759063480322,0.00235573,3969.6,3969.5,5.4535]
[1759063480628,3.2078,3970.4,3970.1,0.3213]
[1759063480824,3.2078,3970.4,3970.2,0.278]
[1759063481025,3.2078,3970.4,3970.3,0.3213]
[1759063481227,3.2078,3970.4,3970.3,0.5993]
[1759063481431,3.21029495,3970.4,3970.3,0.5993]
[1759063481626,3.21029495,3970.4,3970.3,5.5993]
[1759063481823,3.21029495,3970.4,3970.3,0.5993]
[1759063482028,3.21029495,3970.4,3970.3,5.5993]
[1759063482432,3.21029495,3970.4,3970.3,5.3213]
[1759063482633,3.21029495,3970.4,3970.3,5.5993]
[1759063482936,3.21029495,3970.4,3970.3,0.3213]
[1759063483128,3.66342495,3970.4,3970.3,0.3213]
[1759063483325,3.66342495,3970.4,3970.3,0.5993]
[1759063483721,3.66342495,3970.4,3970.3,0.3213]
[1759063483926,0.45316,3970.1,3970.0,0.7315]
[1759063484631,0.45316,3970.1,3970.0,0.4535]
[1759063484833,0.45316,3970.1,3969.2,0.3213]
[1759063484834,0.45325,3969.3,3969.2,0.3213]
[1759063485029,3.66105,3969.3,3969.2,0.3213]
[1759063485329,3.66105,3969.3,3969.2,0.5983]
[1759063485528,3.2078,3969.7,3969.2,5.5983]
[1759063485734,3.2078,3970.1,3970.0,0.1322]
[1759063486034,3.2078,3970.1,3970.0,0.7305]
[1759063486232,3.2078,3970.1,3970.0,5.7305]
[1759063487323,3.2078,3971.0,3970.9,0.3213]
[1759063487530,3.2078,3971.0,3970.9,0.277]
[1759063487729,3.99776,3971.0,3970.4,0.3213]
[1759063488035,3.99776,3971.0,3970.5,0.277]
[1759063488036,0.78999,3970.7,3970.5,0.277]
[1759063488232,0.45311,3970.6,3970.5,0.00269696]
[1759063488432,0.45311,3970.6,3970.5,0.27969696]
[1759063488733,0.00294323,3970.7,3970.5,0.73280696]
[1759063488930,0.00294323,3970.7,3970.6,0.3213]
[1759063489330,0.00294323,3970.7,3970.6,5.3213]
[1759063489734,0.00294323,3970.7,3970.6,5.5983]
[1759063490625,0.00294323,3970.7,3970.6,5.3213]
[1759063490823,0.00294323,3970.7,3970.6,5.5983]
[1759063493530,0.00294323,3970.7,3970.6,5.3213]
[1759063493742,0.3264,3970.6,3970.5,0.00269696]
[1759063493930,0.98492871,3970.6,3970.5,0.27869696]
[1759063494943,0.65852871,3970.6,3970.5,0.59069696]
[1759063495127,0.57982526,3970.6,3970.5,5.68009696]
[1759063495324,0.65852542,3970.6,3970.5,5.68009696]
[1759063495526,0.57982526,3970.6,3970.5,5.68009696]
[1759063496336,0.00294323,3970.7,3970.6,0.7651]
[1759063496937,0.00294323,3970.7,3970.6,1.0411]
[1759063497645,0.3264,3971.9,3971.7,0.76497]
[1759063497947,3.2078,3972.2,3972.1,0.312]
[1759063498148,3.76460537,3972.2,3972.1,0.588]
[1759063498344,3.2078,3972.2,3972.1,0.588]
[1759063498644,0.3484,3972.9,3972.1,0.588]
[1759063498645,0.3484,3972.9,3972.5,0.45288]
[1759063498939,0.3484,3972.9,3972.1,5.588]
[1759063498940,0.3264,3972.7,3972.6,1.04087]
[1759063499136,0.95047771,3972.7,3972.6,1.04087]
[1759063499335,0.87181383,3972.7,3972.6,1.04087]
[1759063499631,0.54541383,3972.7,3972.6,1.04087]
[1759063499832,0.00241542,3972.7,3972.6,4.24867]
[1759063500435,0.00241542,3972.7,3972.6,8.5198]
[1759063500732,0.4513,3972.5,3972.2,0.45292]
[1759063501044,0.32881542,3972.7,3972.6,0.45288]
[1759063501240,0.00241542,3972.7,3972.6,1.04188]
[1759063501434,0.022,3972.9,3972.8,0.76485]
[1759063501634,3.5342,3973.7,3973.4,0.45278]
[1759063501635,0.3264,3973.6,3973.4,0.45278]
[1759063501829,3.2078,3974.1,3973.7,0.45275]
[1759063502033,0.94056548,3973.9,3973.8,0.277]
[1759063502240,0.1249,3973.5,3973.4,0.45278]
[1759063502437,0.4540381,3973.5,3973.4,0.00313324]
[1759063502641,0.45279,3973.4,3973.2,0.277]
[1759063502839,4.27444468,3973.3,3972.7,0.45286]
[1759063503042,0.3264,3972.9,3972.8,0.277]
[1759063503244,1.13232,3972.2,3970.5,0.45311]
[1759063503540,0.3264,3972.4,3970.5,0.45311]
[1759063503541,0.3264,3971.4,3970.7,0.312]
[1759063503737,0.1249,3971.5,3970.7,0.312]
[1759063503934,0.1249,3971.5,3970.8,0.281]
[1759063503935,0.61381842,3971.4,3970.8,0.281]
[1759063504131,0.61381842,3971.3,3970.8,0.281]
[1759063504334,0.61381842,3971.2,3970.8,0.281]
[1759063504540,0.07869144,3971.1,3970.8,0.281]
[1759063504733,0.53174144,3971.1,3970.7,0.312]
[1759063505047,0.45304,3971.2,3970.8,0.593]
[1759063505344,0.3264,3971.0,3970.8,0.281]
[1759063505643,3.78571,3971.5,3970.8,0.73408]
[1759063505833,0.94046232,3971.4,3970.9,0.281]
[1759063506038,0.3264,3970.6,3970.5,0.00322017]
[1759063506343,3.53735828,3970.6,3970.5,0.28322017]
[1759063506838,0.00315828,3970.6,3970.5,0.59522017]
[1759063507436,0.3264,3971.5,3971.3,0.76502]
[1759063507645,0.3264,3971.5,3971.4,0.28]
[1759063507845,3.5342,3972.0,3971.7,0.312]
[1759063508045,0.61447088,3971.9,3971.8,0.73296]
[1759063508436,0.61447088,3971.9,3971.8,1.04496]
[1759063508437,0.0019802,3971.9,3971.8,1.04496]
[1759063508642,0.0019802,3971.9,3971.8,9.25276]
[1759063511043,0.0019802,3971.9,3971.8,48.52976]
[1759063511351,0.3264,3972.9,3971.8,48.52976]
[1759063511352,0.76415,3972.9,3972.2,0.3278]
[1759063511535,0.76415,3972.9,3972.3,0.6078]
[1759063511536,0.07866241,3972.8,3972.3,0.6078]
[1759063511738,0.3113,3972.6,3972.4,0.45289]
[1759063511943,0.45288,3972.6,3972.5,0.28]
[1759063512151,0.84285003,3972.6,3972.5,0.28]
[1759063512338,0.1311,3972.5,3972.0,0.45294]
[1759063512545,0.45293,3972.2,3972.1,0.279]
[1759063512739,3.2078,3972.4,3972.1,0.279]
[1759063512940,0.07867311,3972.3,3972.1,0.279]
[1759063513142,3.2078,3972.4,3972.2,0.45292]
[1759063513443,0.00296779,3972.6,3972.3,0.45291]
[1759063513638,0.3113,3972.5,3972.3,0.73191]
[1759063514247,0.3113,3972.1,3971.8,0.45296]
[1759063514546,0.1311,3972.0,3971.6,0.45298]
[1759063514850,0.3113,3971.9,3971.7,0.279]
[1759063515047,0.45297,3971.8,3971.4,3.5356]
[1759063515348,0.1311,3972.0,3971.0,0.0897]
[1759063515349,0.76433,3971.3,3971.0,3.2078]
[1759063515549,0.3113,3971.4,3971.1,0.279]
[1759063515742,0.3113,3971.4,3971.0,3.66086]
[1759063515743,0.3113,3971.4,3971.2,0.279]
[1759063515945,0.1311,3971.5,3971.2,0.279]
[1759063516147,0.3113,3971.1,3971.0,3.2078]
[1759063516748,0.3113,3971.1,3971.0,3.4868]
[1759063517754,0.3113,3971.1,3971.0,0.279]
[1759063518552,0.3113,3970.6,3970.5,0.00322017]
[1759063518745,3.3389,3971.0,3970.5,0.28222017]
[1759063518941,0.3113,3970.8,3970.6,0.3278]
[1759063519150,0.76439,3970.8,3970.6,0.3278]
[1759063519352,0.3113,3970.6,3970.5,0.00322017]
[1759063519554,0.3113,3970.6,3970.5,0.28222017]
[1759063519749,3.3389,3971.0,3970.7,0.45309]
[1759063519750,3.2078,3971.0,3970.7,0.45309]
[1759063519950,0.45309,3970.7,3970.5,0.00322017]
[1759063520155,0.3113,3970.6,3970.5,0.00322017]
[1759063520452,3.5191,3970.6,3970.5,0.28222017]
[1759063520649,3.5191,3970.6,3970.5,0.00322017]
[1759063520849,8.5978134,3970.6,3970.5,0.00322017]
[1759063521052,9.13421721,3970.6,3970.5,0.00322017]
[1759063521263,4.13421721,3970.6,3970.5,0.00322017]
[1759063521554,3.5978134,3970.6,3970.5,0.00322017]
[1759063521944,3.5191,3970.6,3970.5,0.00322017]
[1759063522145,3.5191,3970.6,3970.5,0.28122017]
[1759063523654,3.2078,3970.6,3970.5,0.28122017]
[1759063523849,3.2078,3970.6,3970.5,0.59642017]
[1759063524043,3.2078,3970.6,3970.5,0.31842017]
[1759063524342,3.5369,3970.6,3970.5,0.28122017]
[1759063524547,3.2078,3970.6,3970.5,0.59642017]
[1759063524860,3.2078,3971.0,3970.5,0.28122017]
[1759063525154,0.45304,3971.2,3971.0,0.3152]
[1759063525355,3.2078,3971.4,3971.1,0.278]
[1759063525554,3.2078,3971.4,3970.9,0.278]
[1759063525555,0.3291,3971.2,3970.9,0.278]
[1759063525747,0.45306,3971.0,3970.9,0.278]
[1759063525951,0.7822,3970.6,3970.5,0.00322017]
[1759063526151,3.99,3970.6,3970.5,0.00322017]
[1759063526350,3.99,3970.6,3970.5,0.28222017]
[1759063526955,3.99,3970.6,3970.5,0.00322017]
[1759063527360,8.99,3970.6,3970.5,0.00322017]
[1759063527658,0.78226,3970.1,3970.0,2.0]
[1759063527956,3.99006,3970.1,3970.0,2.0]
[1759063528153,8.2078,3970.1,3969.0,3.2078]
[1759063528361,0.4533,3968.9,3968.8,0.3152]
[1759063528547,0.455958,3968.9,3968.8,0.31708835]
[1759063528752,0.002658,3968.9,3968.8,0.31708835]
[1759063529356,0.002658,3968.9,3968.8,0.59608835]
[1759063529958,0.002658,3968.9,3968.8,0.31708835]
[1759063530158,0.002658,3968.9,3968.8,0.59608835]
[1759063533054,0.45319,3969.9,3969.6,0.3152]
[1759063533250,0.45319,3969.9,3969.7,0.278]
[1759063533453,3.2078,3970.0,3969.7,0.278]
[1759063533454,3.2078,3970.0,3969.8,0.3152]
[1759063533650,3.2078,3970.0,3969.9,0.3152]
[1759063533866,3.21017395,3970.0,3969.9,0.3152]
[1759063534956,3.21017395,3970.0,3969.9,0.5932]
[1759063535156,8.21017395,3970.0,3969.9,0.278]
[1759063535562,3.21017395,3970.0,3969.9,0.5932]
[1759063536068,3.21017395,3970.0,3969.6,0.3152]
[1759063536069,1.13297,3969.9,3969.6,0.3152]
[1759063536462,0.4532,3969.8,3969.7,0.278]
[1759063536761,0.4532,3969.8,3969.7,0.5932]
[1759063537560,0.4532,3969.8,3969.7,0.3152]
[1759063537761,0.4532,3969.8,3969.7,0.5932]
[1759063537956,0.4532,3969.8,3969.7,0.3152]
[1759063539356,0.4532,3969.8,3969.7,0.5932]
[1759063539863,0.4532,3969.8,3969.7,0.3152]
[1759063540659,3.21017395,3970.0,3969.5,0.7299]
[1759063540660,0.45322,3969.6,3969.5,0.7299]
[1759063540860,3.66102,3969.6,3969.5,0.4529]
[1759063541067,0.45323,3969.5,3969.4,0.277]
[1759063541570,0.45328,3969.2,3969.1,0.5922]
[1759063541967,3.66334395,3970.0,3969.9,0.3152]
[1759063542373,0.45322,3969.6,3969.5,0.1377]
[1759063542562,0.45322,3969.6,3969.0,0.1377]
[1759063542563,0.45328,3969.1,3969.0,0.1377]
[1759063542762,0.45329,3969.0,3968.8,0.00188835]
[1759063542966,0.4533,3968.9,3968.8,0.31708835]
[1759063544963,3.2078,3969.1,3969.0,0.4529]
[1759063545163,3.66108,3969.1,3969.0,0.4529]
[1759063545367,0.45328,3969.1,3969.0,0.4529]
[1759063545667,0.4533,3968.9,3968.8,0.00188835]
[1759063546669,0.53204384,3968.9,3968.8,0.00188835]
[1759063546872,1.06833428,3968.9,3968.8,0.00188835]
[1759063547069,1.06833397,3968.9,3968.8,0.00188835]
[1759063547869,0.4533,3968.9,3968.8,0.00188835]
[1759063548072,0.4533,3968.9,3968.8,0.31708835]
[1759063548264,0.53204087,3968.9,3968.8,0.31708835]
[1759063548460,0.53204087,3968.9,3968.8,0.00188835]
[1759063548461,0.07874087,3968.9,3968.8,0.00188835]
[1759063548775,0.4533,3968.9,3968.8,0.31708835]
[1759063549570,0.45329,3969.0,3968.9,0.3152]
[1759063549777,0.07873836,3969.0,3968.9,0.3152]
[1759063550073,0.45325,3969.3,3969.1,0.3152]
[1759063550271,0.45325,3969.3,3969.2,0.3152]
[1759063550571,3.2078,3969.5,3969.3,0.3152]
[1759063551066,0.45324,3969.4,3969.3,0.3152]
[1759063551566,3.2078,3969.5,3969.4,0.76844]
[1759063552073,0.00237395,3970.0,3969.5,0.1377]
[1759063552074,0.45321,3969.7,3969.5,0.1377]
[1759063552269,0.45319,3969.9,3969.6,0.3152]
[1759063552470,3.21017395,3970.0,3969.6,0.3152]
[1759063552664,0.4532,3969.8,3969.6,0.3152]
[1759063552865,3.21017395,3970.0,3969.6,0.3152]
[1759063553371,3.21017395,3970.0,3969.7,0.7649]
[1759063553571,3.66334395,3970.0,3969.8,0.3117]
[1759063554475,3.66334395,3970.0,3969.9,0.277]
[1759063554768,3.74206131,3970.0,3969.9,0.5887]
[1759063554971,3.28889131,3970.0,3969.9,0.5887]
[1759063555175,0.00237395,3970.0,3969.9,5.5887]
[1759063556474,0.00237395,3970.0,3969.9,5.5877]
[1759063556776,0.00237395,3970.0,3969.9,6.04088]
[1759063557471,0.00237395,3970.0,3969.9,0.76488]
[1759063557677,0.00237395,3970.0,3969.9,1.04088]
[1759063559374,3.2078,3970.9,3970.5,0.137]
[1759063559576,3.2078,3970.9,3970.7,0.45309]
[1759063559777,3.2078,3970.9,3970.8,0.76478]
[1759063560074,3.2078,3971.3,3971.1,0.3117]
[1759063560377,0.07869643,3971.2,3971.0,0.59006]
[1759063560676,3.21083231,3971.3,3971.2,0.3117]
[1759063560865,3.2895277,3971.3,3971.2,0.3117]
[1759063561268,0.00303231,3971.3,3971.2,0.76474]
[1759063562065,0.00303231,3971.3,3971.2,1.04074]
[1759063562869,0.00303231,3971.3,3971.2,0.76474]
[1759063563077,0.45605231,3971.3,3971.2,0.3117]
[1759063563374,0.00303231,3971.3,3971.2,1.03974]
[1759063564280,0.00303231,3971.3,3971.2,6.03974]
[1759063565177,3.2078,3972.2,3972.0,0.58994]
[1759063565380,3.2078,3972.2,3972.1,0.5867]
[1759063565865,3.2078,3972.2,3972.1,1.03963]
[1759063566069,3.2078,3972.7,3972.3,0.45291]
[1759063566270,0.45288,3972.6,3972.5,0.137]
[1759063566567,0.45288,3972.6,3972.5,0.7237]
[1759063566970,0.45292,3972.2,3972.1,0.31438072]
[1759063567180,3.66072,3972.2,3972.1,0.58938072]
[1759063567577,3.2078,3972.2,3972.1,0.31438072]
[1759063567885,3.2078,3972.2,3972.1,0.58938072]
[1759063568380,3.66072,3972.2,3972.1,0.58938072]
[1759063568575,3.66072,3972.2,3972.1,0.31438072]
[1759063568775,3.2078,3972.2,3972.1,0.58838072]
[1759063568980,3.2078,3972.2,3972.1,1.04131072]
[1759063569284,0.00321243,3972.7,3972.6,0.3117]
[1759063569285,0.45607243,3972.7,3972.6,0.3117]
[1759063569783,0.45607243,3972.7,3972.6,0.5857]
[1759063570380,0.00321243,3972.7,3972.6,1.03858]
[1759063570576,0.00321243,3972.7,3972.6,1.05518]
[1759063573180,3.2078,3973.2,3973.1,0.45281]
[1759063573484,3.66056,3973.6,3973.5,0.4541]
[1759063573679,3.66056,3973.6,3973.5,0.7281]
[1759063574076,3.2078,3973.6,3973.5,0.4541]
[1759063574282,3.20993679,3973.6,3973.5,1.18087]
[1759063574682,0.00213679,3973.6,3973.5,1.18087]
[1759063575185,0.274,3975.0,3973.5,1.18087]
[1759063575186,3.2078,3974.6,3974.5,0.1258]
[1759063575387,3.2078,3974.6,3974.5,0.7281]
[1759063576188,3.21103346,3974.6,3974.5,0.7281]
[1759063576685,0.45269,3974.2,3974.0,0.4541]
[1759063576888,3.2078,3974.1,3974.0,0.1258]
[1759063577086,3.2078,3974.1,3974.0,0.3998]
[1759063577288,3.2078,3974.1,3974.0,0.7281]
[1759063577479,3.2078,3974.1,3973.4,3.2078]
[1759063577686,0.4528,3973.2,3972.9,0.3283]
[1759063577882,3.2078,3973.2,3972.6,0.6023]
[1759063578083,3.66061,3973.2,3973.0,0.1258]
[1759063578386,0.45286,3972.7,3972.5,0.1258]
[1759063578588,3.2078,3973.2,3972.6,0.3283]
[1759063578889,3.2078,3973.2,3972.5,0.4541]
[1759063579085,0.45286,3972.7,3972.6,0.3283]
[1759063579581,0.45286,3972.7,3972.6,0.275]
[1759063580390,0.45291,3972.3,3972.2,0.3283]
[1759063580689,0.45291,3972.3,3972.2,0.275]
[1759063583492,5.45291,3972.3,3972.1,0.00268072]
[1759063583790,0.45291,3972.3,3972.1,0.00268072]
[1759063584000,0.45291,3972.3,3972.2,0.3228]
[1759063584207,3.2054,3972.4,3972.3,0.3228]
[1759063585206,3.66062,3973.1,3973.0,0.1292]
[1759063585498,3.73928731,3973.1,3973.0,0.452]
[1759063586003,3.2078,3973.1,3973.0,0.452]
[1759063586297,0.45281,3973.2,3973.0,0.1292]
[1759063586507,0.45281,3973.2,3973.1,0.3228]
[1759063588096,0.45287,3972.6,3972.5,0.1292]
[1759063588311,0.45287,3972.6,3972.5,0.4032]
[1759063588500,0.45287,3972.6,3972.5,0.726]
[1759063590505,3.66066,3972.7,3972.6,0.3228]
[1759063591001,3.66066,3972.7,3972.1,0.32548072]
[1759063591002,0.45292,3972.2,3972.1,0.32548072]
[1759063591200,0.45292,3972.2,3972.1,0.59848072]
[1759063591394,0.45292,3972.2,3972.1,0.32548072]
[1759063591802,0.5315946,3972.2,3972.1,0.32548072]
[1759063592099,3.7393946,3972.2,3972.1,0.00268072]
[1759063592805,4.27647287,3972.2,3972.1,0.00268072]
[1759063593403,4.27647287,3972.2,3972.1,0.32548072]
[1759063593802,3.7393946,3972.2,3972.1,0.32548072]
[1759063594007,3.2864746,3972.2,3972.1,0.77841072]
[1759063594308,0.45289,3972.5,3972.4,0.3228]
[1759063594510,0.078669,3972.5,3972.4,0.77569]
[1759063594710,3.2078,3972.7,3972.6,0.45287]
[1759063595010,3.28646467,3972.7,3972.6,0.5958]
[1759063595809,3.2078,3972.7,3972.6,0.5958]
[1759063596010,3.66066,3972.7,3972.6,0.3228]
[1759063596307,3.66066,3972.7,3972.6,0.5958]
[1759063596708,3.73932406,3972.7,3972.6,0.5958]
[1759063597602,3.73932406,3972.7,3972.6,0.3228]
[1759063597802,3.73932406,3972.7,3972.6,0.5958]
[1759063598305,3.73932406,3972.7,3972.6,0.5948]
[1759063598505,3.28646406,3972.7,3972.6,0.5948]
[1759063598701,3.73932395,3972.7,3972.6,0.5948]
[1759063599313,3.28646395,3972.7,3972.6,0.5948]